bitfinex-derivatives/quotes_SOLF0:USTF0_20240815
["timestamp","ask_amount","ask_price","bid_price","bid_amount"]
[1723760334474,1.7671,141.44,141.43,0.04622216]
[1723760334877,35.245,141.45,141.35,40.6342]
[1723760335279,1.7673,141.43,141.39,1.7677]
[1723760335986,0.05394283,141.42,141.4,0.04909482]
[1723760336285,1.7674,141.41,141.4,0.04909482]
[1723760336489,33.9,141.41,141.32,5.42]
[1723760336788,1.7676,141.4,141.35,1.7681]
[1723760336983,1.7676,141.4,141.32,5.42]
[1723760337184,33.9,141.41,141.32,5.42]
[1723760337384,35.1598,141.41,141.32,5.42]
[1723760337582,0.04626872,141.38,141.36,1.768]
[1723760337986,0.04626872,141.38,141.37,1.7679]
[1723760338590,0.04626872,141.38,141.37,35.6679]
[1723760338790,6.765,141.45,141.4,1.7676]
[1723760339993,0.05311589,141.44,141.41,0.05119964]
[1723760340490,0.05311589,141.44,141.41,1.81859964]
[1723760340686,0.05311589,141.44,141.41,0.05119964]
[1723760341187,0.05311589,141.44,141.43,1.7672]
[1723760343693,0.05311589,141.44,141.42,5.42]
[1723760343896,0.05311589,141.44,141.41,0.05119964]
[1723760345492,0.05311589,141.44,141.24,3.5391]
[1723760345493,33.9,141.43,141.34,5.42]
[1723760345691,1.3461,141.42,141.34,5.42]
[1723760345886,35.1683,141.45,141.34,39.32]
[1723760346487,0.05424339,141.41,141.38,0.05281614]
[1723760347086,0.05424339,141.41,141.38,1.82051614]
[1723760347693,1.82174339,141.41,141.38,0.05281614]
[1723760348390,0.05424339,141.41,141.38,0.05281614]
[1723760349498,0.05424339,141.41,141.4,1.7676]
[1723760354996,7.1868,141.47,141.42,1.7672]
[1723760355203,7.1868,141.47,141.39,33.9]
[1723760355404,7.1868,141.47,141.39,35.1566]
[1723760355606,7.1868,141.47,141.39,40.5566]
[1723760355806,1.7668,141.46,141.39,40.5566]
[1723760356196,0.04829641,141.44,141.41,0.046602]
[1723760356397,0.04829641,141.44,141.41,1.814002]
[1723760356706,0.04829641,141.44,141.41,0.046602]
[1723760358107,1.7672,141.43,141.41,0.046602]
[1723760358510,33.9,141.42,141.3,33.9]
[1723760358707,1.7679,141.38,141.33,1.7684]
[1723760359006,1.7679,141.38,141.3,33.9]
[1723760359395,1.7677,141.39,141.34,1.7683]
[1723760359808,0.05173989,141.38,141.34,1.7683]
[1723760361004,0.05173989,141.38,141.33,0.04737888]
[1723760362602,1.81953989,141.38,141.34,1.7682]
[1723760363511,0.05173989,141.38,141.33,0.04737888]
[1723760363721,0.05173989,141.38,141.33,33.94737888]
[1723760364011,0.05173989,141.38,141.37,1.7679]
[1723760364809,3.0665,141.44,141.4,1.7675]
[1723760365103,1.2994,141.44,141.34,36.4362]
[1723760365311,33.9,141.43,141.36,1.768]
[1723760365498,33.9,141.43,141.34,36.4362]
[1723760365900,0.04996576,141.4,141.37,0.05009206]
[1723760366205,33.9,141.5,141.39,33.9]
[1723760366405,1.7669,141.46,141.39,33.9]
[1723760367008,1.7669,141.46,141.41,1.7673]
[1723760367205,0.04753916,141.44,141.41,1.81319192]
[1723760368806,0.04753916,141.44,141.41,0.04589192]
[1723760369607,33.94753916,141.44,141.41,0.04589192]
[1723760369805,1.7673,141.43,141.41,0.04589192]
[1723760370006,0.04753916,141.44,141.41,0.04589192]
[1723760370812,0.04753916,141.44,141.41,5.44589192]
[1723760371219,0.04753916,141.44,141.43,1.7672]
[1723760373419,33.9,141.51,141.46,1.7667]
[1723760373420,1.7662,141.51,141.46,1.7667]
[1723760373614,1.7662,141.51,141.42,33.9]
[1723760374114,4.3918,141.52,141.42,33.9]
[1723760374315,2.6257,141.52,141.44,33.9]
[1723760374715,0.04937252,141.49,141.47,0.05015798]
[1723760375219,21.24,141.79,141.48,33.9]
[1723760375413,35.1464,141.86,141.63,50.13363615]
[1723760375608,1.2857,141.85,141.63,50.13363615]
[1723760375807,1.2857,141.85,141.76,33.9]
[1723760376015,7.6,141.84,141.76,33.9]
[1723760376418,0.0476395,141.81,141.79,0.05169973]
[1723760376621,0.0476395,141.81,141.71,33.9]
[1723760376811,0.0476395,141.81,141.72,1.7636]
[1723760377121,7.6,141.8,141.72,1.7636]
[1723760377325,41.5,141.8,141.68,33.9]
[1723760377815,41.5,141.8,141.73,0.05077687]
[1723760378015,0.04812264,141.75,141.68,33.9]
[1723760378212,7.6,141.74,141.66,33.9]
[1723760378522,2.5055,141.73,141.66,33.9]
[1723760378916,10.1055,141.73,141.64,33.9]
[1723760379130,0.04564159,141.71,141.68,0.04963937]
[1723760380422,0.04564159,141.71,141.69,33.9]
[1723760380721,1.277,141.79,141.69,33.9]
[1723760380918,1.277,141.79,141.72,33.9]
[1723760381714,0.04474055,141.77,141.74,0.05070726]
[1723760381914,0.04474055,141.77,141.74,40.66070726]
[1723760382925,1.2613,141.84,141.74,40.66070726]
[1723760383126,1.7622,141.83,141.75,40.61]
[1723760383822,1.7624,141.82,141.75,40.61]
[1723760384018,0.04639127,141.8,141.78,0.04656486]
[1723760385125,0.04639127,141.8,141.73,40.61]
[1723760385324,0.04639127,141.8,141.68,8.0]
[1723760385325,0.04639127,141.8,141.71,40.61]
[1723760385528,41.8713,141.84,141.72,1.7635]
[1723760385529,41.70600962,141.84,141.72,1.7635]
[1723760385721,1.09600962,141.84,141.71,40.61]
[1723760386024,1.7635,141.73,141.66,40.61]
[1723760386328,1.7635,141.73,141.63,40.61]
[1723760386329,8.0,141.73,141.63,40.61]
[1723760386522,1.2684,141.72,141.63,40.61]
[1723760386828,0.04980195,141.69,141.67,0.04881752]
[1723760388524,0.04980195,141.69,141.61,40.61]
[1723760388722,41.8784,141.72,141.5,1.243]
[1723760388926,40.61,141.7,141.58,40.61]
[1723760389130,40.61,141.7,141.58,42.3752]
[1723760389830,0.05178584,141.65,141.58,41.42083881]
[1723760390221,0.05178584,141.65,141.58,39.65563881]
[1723760390630,1.7646,141.64,141.58,41.42093881]
[1723760390824,0.05178584,141.65,141.58,41.42093881]
[1723760391022,0.05178584,141.65,141.6,0.04658047]
[1723760391829,1.0,141.62,141.6,0.04658047]
[1723760392429,1.7649,141.61,141.6,0.04658047]
[1723760392632,1.0,141.62,141.6,0.04658047]
[1723760392932,1.0524834,141.62,141.6,0.04658047]
[1723760393325,1.0524834,141.62,141.5,9.243]
[1723760393531,1.0524834,141.62,141.6,40.61]
[1723760393532,1.0,141.62,141.6,40.61]
[1723760394635,1.05147718,141.62,141.6,40.65990197]
[1723760396135,0.05147718,141.62,141.6,40.65990197]
[1723760396340,8.02,141.75,141.61,40.61]
[1723760396540,1.2556,141.74,141.67,40.61]
[1723760397035,1.2556,141.74,141.58,40.61]
[1723760397036,1.2556,141.74,141.65,40.61]
[1723760397437,0.05179392,141.7,141.67,0.04970148]
[1723760398037,0.05179392,141.7,141.68,40.61]
[1723760398733,8.02,141.76,141.68,40.61]
[1723760398931,8.02,141.76,141.71,40.61]
[1723760400033,1.81173778,141.75,141.72,0.05049031]
[1723760400532,1.7634,141.74,141.72,0.05049031]
[1723760400732,0.04853778,141.75,141.66,40.61]
[1723760401228,1.7636,141.72,141.67,1.7642]
[1723760401430,8.02,141.76,141.66,40.61]
[1723760401729,8.02,141.76,141.7,0.04472683]
[1723760401934,0.05032209,141.72,141.7,0.04472683]
[1723760403242,0.05032209,141.72,141.63,40.61]
[1723760403430,40.61,141.75,141.63,40.61]
[1723760403633,40.61,141.75,141.63,42.3747]
[1723760403634,1.7642,141.68,141.63,42.3747]
[1723760404030,1.7642,141.67,141.63,42.3747]
[1723760404245,1.81114249,141.67,141.64,0.04761338]
[1723760404436,0.04694249,141.67,141.64,0.04761338]
[1723760404633,1.7644,141.66,141.64,0.04761338]
[1723760404933,0.04694249,141.67,141.64,0.04761338]
[1723760405635,0.04694249,141.67,141.65,1.7644]
[1723760405833,0.04694249,141.67,141.65,35.6544]
[1723760406436,0.04694249,141.67,141.66,1.7643]
[1723760406738,7.66,141.74,141.68,33.89]
[1723760406929,7.66,141.74,141.66,33.89]
[1723760407329,41.55,141.74,141.63,33.89]
[1723760407536,1.7639,141.7,141.63,33.89]
[1723760407733,1.81657331,141.7,141.67,0.051579]
[1723760407935,0.05267331,141.7,141.67,0.051579]
[1723760408841,1.764,141.69,141.67,0.051579]
[1723760409042,0.05267331,141.7,141.67,0.051579]
[1723760409230,0.05267331,141.7,141.68,33.89]
[1723760409436,7.66,141.74,141.68,33.89]
[1723760409737,1.2831,141.76,141.7,33.89]
[1723760409939,60.60177774,141.79,141.72,33.89]
[1723760409940,15.66,141.79,141.72,33.89]
[1723760410138,15.66,141.79,141.74,33.89]
[1723760410139,8.0,141.79,141.74,33.89]
[1723760410838,0.04991044,141.78,141.75,0.04641301]
[1723760411039,4.92461044,141.79,141.76,33.89]
[1723760411436,4.92461044,141.79,141.75,0.04641301]
[1723760412037,0.92461044,141.79,141.75,0.04641301]
[1723760412234,1.2245,141.78,141.75,0.04641301]
[1723760412538,1.7631,141.76,141.75,0.04641301]
[1723760413036,40.62,141.77,141.65,40.62]
[1723760413436,1.764,141.69,141.64,1.7645]
[1723760414242,1.81007592,141.68,141.65,0.0462567]
[1723760414446,0.04597592,141.68,141.65,0.0462567]
[1723760415540,0.04597592,141.68,141.65,1.8106567]
[1723760417046,8.58461044,141.79,141.67,40.62]
[1723760417245,4.85549897,141.77,141.67,40.62]
[1723760417441,1.7631,141.76,141.67,40.62]
[1723760417741,1.299,141.77,141.7,40.62]
[1723760418242,1.299,141.77,141.72,1.81388438]
[1723760418243,0.0526366,141.75,141.72,1.81388438]
[1723760418444,0.0526366,141.75,141.72,0.05038438]
[1723760418644,0.0526366,141.75,141.72,40.67038438]
[1723760418833,0.0526366,141.75,141.73,1.7634]
[1723760419033,0.0526366,141.75,141.72,40.67038438]
[1723760419238,0.0526366,141.75,141.72,0.05038438]
[1723760420038,1.7634,141.73,141.72,0.05038438]
[1723760421443,48.28,141.73,141.63,1.7646]
[1723760421835,1.7641,141.68,141.63,1.7646]
[1723760422143,48.28,141.73,141.61,40.62]
[1723760422340,1.81250141,141.68,141.66,0.04802919]
[1723760422537,0.04840141,141.68,141.66,0.04802919]
[1723760422741,48.28,141.73,141.66,0.04802919]
[1723760422942,1.7642,141.67,141.66,0.04802919]
[1723760423333,9.4242,141.67,141.66,0.04802919]
[1723760423534,7.66,141.67,141.58,1.7652]
[1723760423733,7.66,141.67,141.57,40.62]
[1723760423734,1.2961,141.66,141.57,40.62]
[1723760423938,1.2961,141.66,141.59,40.62]
[1723760424140,1.2961,141.66,141.58,1.7653]
[1723760424443,1.2961,141.66,141.57,40.62]
[1723760424644,1.2961,141.66,141.6,0.05277331]
[1723760424939,0.04788748,141.63,141.6,0.05277331]
[1723760426436,1.81268748,141.63,141.6,0.05277331]
[1723760427538,1.7648,141.62,141.6,0.05277331]
[1723760428147,1.81258748,141.63,141.6,0.05277331]
[1723760429447,0.04788748,141.63,141.6,0.05277331]
[1723760429839,1.7649,141.61,141.6,0.05277331]
[1723760431555,0.04788748,141.63,141.6,0.05277331]
[1723760431852,0.04788748,141.63,141.6,40.67277331]
[1723760432150,0.04788748,141.63,141.62,42.3848]
[1723760432848,0.04788748,141.63,141.62,1.7648]
[1723760434645,0.04788748,141.63,141.6,40.67277331]
[1723760434855,0.04788748,141.63,141.6,0.05277331]
[1723760435246,0.04788748,141.63,141.6,1.81767331]
[1723760436247,0.04788748,141.63,141.61,1.7649]
[1723760436443,0.04788748,141.63,141.6,0.05277331]
[1723760436644,0.04788748,141.63,141.61,1.7649]
[1723760436847,235.32,141.72,141.62,40.62]
[1723760437052,1.3125,141.71,141.59,40.62]
[1723760437654,3.57645816,141.7,141.6,1.3011]
[1723760438250,0.04974329,141.66,141.64,0.05373243]
[1723760439151,0.04974329,141.66,141.65,1.7644]
[1723760440164,0.04974329,141.66,141.64,0.05373243]
[1723760440545,0.04974329,141.66,141.64,1.81823243]
[1723760440949,0.04974329,141.66,141.64,0.05373243]
[1723760441650,1.7644,141.65,141.64,0.05373243]
[1723760442355,1.81404329,141.66,141.64,0.05373243]
[1723760443155,0.04974329,141.66,141.64,0.05373243]
[1723760443859,0.04974329,141.66,141.64,1.81823243]
[1723760444357,0.04974329,141.66,141.64,0.05373243]
[1723760444955,0.04974329,141.66,141.56,33.84]
[1723760445152,0.04974329,141.66,141.54,35.1411]
[1723760445153,33.84,141.64,141.54,35.1411]
[1723760445348,1.2954,141.63,141.54,35.1411]
[1723760446150,0.04516128,141.6,141.57,0.05090946]
[1723760447857,0.04516128,141.6,141.59,1.7652]
[1723760448258,0.04516128,141.6,141.57,0.05090946]
[1723760448451,0.04516128,141.6,141.59,1.7652]
[1723760449958,1.3017,141.67,141.59,40.65]
[1723760450352,1.3017,141.67,141.57,7.32]
[1723760450353,1.2643,141.66,141.58,1.7652]
[1723760450660,1.2643,141.66,141.52,47.97]
[1723760450862,1.2643,141.66,141.58,1.7652]
[1723760451054,1.7646,141.64,141.58,0.04750596]
[1723760451256,0.04466747,141.63,141.58,0.04750596]
[1723760452866,0.04466747,141.63,141.6,1.765]
[1723760454262,1.80936747,141.63,141.58,1.81270596]
[1723760454460,1.80936747,141.63,141.58,0.04750596]
[1723760454662,0.04466747,141.63,141.58,0.04750596]
[1723760455059,1.7649,141.62,141.58,1.81270596]
[1723760455460,0.04466747,141.63,141.58,0.04750596]
[1723760456555,1.7649,141.62,141.58,1.81270596]
[1723760457966,1.80936747,141.63,141.6,1.765]
[1723760458272,0.04466747,141.63,141.58,0.04750596]
[1723760458570,0.04466747,141.63,141.61,1.7649]
[1723760459571,0.04466747,141.63,141.62,1.7648]
[1723760460070,0.04466747,141.63,141.61,1.81248194]
[1723760460268,0.04466747,141.63,141.61,0.04758194]
[1723760461469,1.80936747,141.63,141.61,0.04758194]
[1723760461865,0.04466747,141.63,141.61,0.04758194]
[1723760462573,1.7652,141.59,141.55,1.7657]
[1723760462875,1.7652,141.59,141.52,47.63]
[1723760463464,1.7651,141.6,141.56,1.7655]
[1723760463664,0.05233289,141.57,141.56,1.7655]
[1723760464769,0.05233289,141.57,141.55,1.7656]
[1723760465161,0.05233289,141.57,141.54,0.04635666]
[1723760465162,0.05233289,141.57,141.54,1.81215666]
[1723760465373,0.05233289,141.57,141.54,0.04635666]
[1723760465671,1.7657,141.55,141.54,0.04635666]
[1723760466262,1.7656,141.56,141.54,0.04635666]
[1723760466464,0.05233289,141.57,141.54,0.04635666]
[1723760467472,1.7657,141.55,141.54,0.04635666]
[1723760470375,33.93,141.55,141.44,35.1884]
[1723760470570,6.98,141.55,141.46,33.93]
[1723760470767,1.7659,141.54,141.49,1.7664]
[1723760471267,0.05075263,141.53,141.49,1.7664]
[1723760471475,0.05075263,141.53,141.5,0.04987111]
[1723760471767,1.2214,141.58,141.51,33.93]
[1723760471969,1.2214,141.58,141.52,1.7661]
[1723760471970,0.05423462,141.53,141.52,1.7661]
[1723760472269,0.05035294,141.56,141.53,0.05217577]
[1723760474167,33.98035294,141.56,141.53,0.05217577]
[1723760474368,1.7658,141.54,141.53,0.05217577]
[1723760476971,1.7657,141.55,141.53,0.05217577]
[1723760477168,0.05035294,141.56,141.53,0.05217577]
[1723760477970,1.3431,141.64,141.54,33.93]
[1723760478275,2.6817,141.64,141.54,33.93]
[1723760478865,1.7649,141.62,141.57,1.7653]
[1723760479066,1.7649,141.62,141.58,0.05388639]
[1723760479264,0.04522788,141.61,141.58,0.05388639]
[1723760479668,1.81012788,141.61,141.58,0.05388639]
[1723760480274,0.04522788,141.61,141.58,0.05388639]
[1723760481672,0.04522788,141.61,141.59,1.7651]
[1723760482478,0.04522788,141.61,141.58,0.05388639]
[1723760482871,0.04522788,141.61,141.58,33.98388639]
[1723760483069,2.5132,141.68,141.58,33.98388639]
[1723760483272,2.5132,141.68,141.56,6.64]
[1723760483273,2.5132,141.68,141.6,33.93]
[1723760483473,1.7622,141.83,141.67,33.93]
[1723760483674,1.7622,141.83,141.55,0.1901]
[1723760483675,33.93,141.86,141.68,1.48520502]
[1723760483871,33.93,141.82,141.71,33.93]
[1723760484074,33.93,141.8,141.69,33.93]
[1723760484275,33.93,141.8,141.68,0.1901]
[1723760484276,0.04688973,141.78,141.75,0.04747072]
[1723760484482,33.93,141.77,141.5,7.24]
[1723760484785,33.93,141.72,141.64,1.7645]
[1723760484975,7.24,141.71,141.64,1.7645]
[1723760485176,33.93,141.7,141.62,1.7647]
[1723760485377,35.1709,141.7,141.58,33.93]
[1723760485583,0.04866899,141.67,141.65,0.04764846]
[1723760485783,7.24,141.66,141.65,0.04764846]
[1723760489587,42.4174,141.66,141.65,0.04764846]
[1723760492789,42.4174,141.66,141.6,1.765]
[1723760492990,33.93,141.63,141.54,1.2251]
[1723760493791,0.05020864,141.6,141.57,0.05345034]
[1723760493982,7.24,141.59,141.57,0.05345034]
[1723760494393,41.17,141.59,141.57,0.05345034]
[1723760494691,33.93,141.57,141.47,1.2865]
[1723760494993,7.24,141.56,141.47,35.2165]
[1723760495791,0.04946203,141.53,141.5,0.04771172]
[1723760496693,0.04946203,141.53,141.51,1.7661]
[1723760496888,0.04946203,141.53,141.5,0.04771172]
[1723760497993,7.24,141.52,141.5,0.04771172]
[1723760499494,0.04946203,141.53,141.5,1.81401172]
[1723760499694,0.04946203,141.53,141.5,0.04771172]
[1723760499886,0.04946203,141.53,141.52,33.93]
[1723760500094,0.04946203,141.53,141.51,1.7661]
[1723760500398,0.04946203,141.53,141.51,35.6961]
[1723760501700,7.24,141.61,141.51,33.93]
[1723760501889,7.24,141.61,141.52,33.93]
[1723760502289,7.24,141.61,141.45,33.93]
[1723760502290,1.2201,141.62,141.55,33.93]
[1723760502592,1.2201,141.62,141.52,7.24]
[1723760502793,1.2201,141.62,141.57,1.81910284]
[1723760502794,0.04875688,141.6,141.57,1.81910284]
[1723760505402,0.04875688,141.6,141.58,1.7653]
[1723760505611,41.17,141.66,141.59,33.93]
[1723760505612,7.24,141.66,141.59,33.93]
[1723760505797,3.8929,141.71,141.61,33.93]
[1723760505995,1.337,141.71,141.66,33.93]
[1723760506196,2.5559,141.76,141.66,33.93]
[1723760506396,3.9392893,141.75,141.66,41.17]
[1723760506602,3.8929,141.76,141.68,1.7641]
[1723760506801,0.04485634,141.72,141.69,0.05368353]
[1723760507399,0.04485634,141.72,141.62,7.24]
[1723760507594,0.04485634,141.72,141.59,33.93]
[1723760507595,33.93,141.7,141.59,33.93]
[1723760507800,33.93,141.7,141.59,41.53]
[1723760508194,1.764,141.69,141.62,1.7648]
[1723760508399,1.3254,141.69,141.59,41.53]
[1723760508595,0.04659031,141.67,141.64,0.04559606]
[1723760510513,1.81079031,141.67,141.64,0.04559606]
[1723760510809,0.04659031,141.67,141.64,0.04559606]
[1723760513919,7.076,141.86,141.57,35.2033]
[1723760513920,4.0,141.9,141.66,33.93]
[1723760514112,4.0,141.9,141.75,33.93]
[1723760514113,6.13398899,141.86,141.75,33.93]
[1723760514315,33.93,141.82,141.67,1.2443]
[1723760514517,33.93,141.8,141.69,33.93]
[1723760514819,11.46159657,141.79,141.69,33.93]
[1723760515117,0.05367769,141.76,141.73,0.05259633]
[1723760515712,41.89,141.75,141.73,0.05259633]
[1723760516023,8.3,141.74,141.63,33.93]
[1723760516218,14.11912149,141.73,141.64,3.028]
[1723760516412,8.3,141.74,141.64,3.028]
[1723760516413,14.11912149,141.72,141.64,3.028]
[1723760516616,14.11912149,141.71,141.64,3.028]
[1723760516816,14.11912149,141.7,141.64,3.028]
[1723760517012,14.16543286,141.69,141.66,0.04925433]
[1723760517217,3.89584386,141.68,141.66,0.04925433]
[1723760517425,0.04631137,141.69,141.66,0.04925433]
[1723760522124,8.3,141.68,141.66,0.04925433]
[1723760523429,1.247,141.68,141.66,0.04925433]
[1723760523631,8.3,141.67,141.66,0.04925433]
[1723760525527,0.04631137,141.69,141.66,0.04925433]
[1723760526829,0.04631137,141.69,141.66,33.97925433]
[1723760527031,33.93,141.79,141.68,33.93]
[1723760527329,80.86451815,141.96,141.7,33.93]
[1723760527330,2.6074,141.78,141.7,33.93]
[1723760528538,0.04496128,141.75,141.73,0.05154682]
[1723760528931,0.04496128,141.75,141.7,1.7638]
[1723760529239,0.04496128,141.75,141.61,0.8092]
[1723760529240,3.0294,141.85,141.74,33.93]
[1723760529429,7.88621198,141.84,141.74,33.93]
[1723760529733,3.7853,141.85,141.74,33.93]
[1723760530639,0.05061626,141.81,141.78,0.04646489]
[1723760532838,33.93,141.79,141.7,33.93]
[1723760533227,1.7628,141.78,141.7,33.93]
[1723760534127,0.05396507,141.75,141.73,0.04777162]
[1723760537037,8.3,141.84,141.74,33.93]
[1723760537536,2.4944,141.87,141.78,33.93]
[1723760537733,4.0,141.89,141.83,33.93]
[1723760538444,0.04593653,141.87,141.85,0.05065487]
[1723760539042,33.97593653,141.87,141.85,0.05065487]
[1723760539444,1.762,141.85,141.76,33.93]
[1723760539642,3.9123,141.86,141.76,33.93]
[1723760540056,1.7621,141.84,141.76,33.93]
[1723760540750,0.04919317,141.81,141.79,0.05358504]
[1723760543739,0.04919317,141.81,141.79,1.81628504]
[1723760543939,0.04919317,141.81,141.79,0.05358504]
[1723760544148,33.97919317,141.81,141.79,0.05358504]
[1723760544448,1.7626,141.8,141.79,0.05358504]
[1723760544841,1.7626,141.8,141.68,12.99402106]
[1723760544842,1.763,141.77,141.68,9.4749]
[1723760545045,33.93,141.83,141.71,33.93]
[1723760545257,8.66,141.84,141.71,33.93]
[1723760545556,3.50504597,141.93,141.83,33.93]
[1723760545752,33.93,141.9,141.79,33.93]
[1723760545949,33.93,141.88,141.76,33.93]
[1723760546450,33.93,141.86,141.75,4.33832359]
[1723760546651,33.93,141.88,141.77,33.93]
[1723760547043,0.05064302,141.84,141.81,0.04781968]
[1723760547547,0.05064302,141.84,141.83,33.93]
[1723760547954,0.05064302,141.84,141.83,1.7622]
[1723760548455,0.05064302,141.84,141.83,35.6922]
[1723760549259,0.05064302,141.84,141.81,0.04781968]
[1723760549260,0.05064302,141.84,141.82,1.7623]
[1723760549648,0.05064302,141.84,141.81,0.04781968]
[1723760549854,0.05064302,141.84,141.83,1.7622]
[1723760550154,0.05064302,141.84,141.81,0.04781968]
[1723760550353,0.05064302,141.84,141.83,1.7622]
[1723760550949,5.2333,141.95,141.83,33.93]
[1723760551255,7.7854,141.95,141.87,33.93]
[1723760552354,0.04986505,141.92,141.9,0.0539546]
[1723760553157,0.04986505,141.92,141.91,1.7612]
[1723760553955,3.19418772,141.99,141.95,1.7606]
[1723760554157,3.19418772,141.99,141.93,33.93]
[1723760554652,3.19418772,141.99,141.91,33.93]
[1723760554859,3.19418772,141.99,141.89,33.93]
[1723760555154,0.04979056,141.95,141.93,0.05066734]
[1723760555859,33.97979056,141.95,141.84,42.57]
[1723760556152,3.011,141.94,141.89,1.7614]
[1723760556356,37.12418772,141.99,141.88,33.93]
[1723760556559,33.93,141.97,141.86,33.93]
[1723760556947,0.05036954,141.93,141.9,0.0523687]
[1723760557359,1.81146954,141.93,141.9,0.0523687]
[1723760560459,0.05036954,141.93,141.9,0.0523687]
[1723760561956,33.93,141.91,141.8,33.93]
[1723760562161,2.5043,141.9,141.8,33.93]
[1723760562466,33.93,141.89,141.8,33.93]
[1723760562660,42.57,141.89,141.8,33.93]
[1723760562857,8.64,141.89,141.8,33.93]
[1723760563359,8.64,141.89,141.83,0.04497154]
[1723760563555,0.04864744,141.86,141.83,0.04497154]
[1723760565165,46.57,141.97,141.85,33.93]
[1723760565363,1.3162,141.95,141.85,33.93]
[1723760565665,35.2462,141.95,141.85,35.6918]
[1723760565866,35.2462,141.95,141.85,33.93]
[1723760566063,1.7612,141.92,141.86,1.7618]
[1723760566267,35.2462,141.95,141.83,33.93]
[1723760566578,0.04937495,141.9,141.87,0.05137175]
[1723760568864,0.04937495,141.9,141.87,1.81297175]
[1723760569069,0.04937495,141.9,141.87,0.05137175]
[1723760571272,0.04937495,141.9,141.88,33.93]
[1723760571460,1.3162,141.95,141.89,33.93]
[1723760571763,2.6516,141.98,141.89,33.93]
[1723760571964,2.6516,141.98,141.83,8.4]
[1723760572173,2.6516,141.98,141.89,33.93]
[1723760572558,0.04729389,141.95,141.92,0.04543407]
[1723760575972,1.7609,141.94,141.92,0.04543407]
[1723760576474,1.80799389,141.95,141.92,0.04543407]
[1723760576966,0.04729389,141.95,141.92,0.04543407]
[1723760577772,1.7609,141.94,141.92,0.04543407]
[1723760578070,33.93,141.94,141.83,42.33]
[1723760578270,1.7612,141.91,141.83,42.33]
[1723760578465,33.93,141.94,141.83,42.33]
[1723760578974,33.93,141.94,141.87,1.7616]
[1723760579170,0.0454114,141.9,141.87,1.81396819]
[1723760580272,0.0454114,141.9,141.88,1.7616]
[1723760580663,0.0454114,141.9,141.87,0.05236819]
[1723760581667,1.7615,141.89,141.87,0.05236819]
[1723760581874,0.0454114,141.9,141.87,0.05236819]
[1723760583078,1.7616,141.88,141.87,0.05236819]
[1723760583279,1.2749114,141.9,141.87,0.05236819]
[1723760583969,1.2749114,141.9,141.81,33.93]
[1723760584168,1.2295,141.9,141.81,33.93]
[1723760584372,1.7616,141.88,141.85,1.7619]
[1723760584978,1.7616,141.88,141.84,1.762]
[1723760585275,0.04710577,141.88,141.85,0.04602845]
[1723760585474,1.2312,141.91,141.83,33.93]
[1723760585675,0.04638225,141.88,141.86,33.93]
[1723760586075,0.04638225,141.88,141.87,1.7617]
[1723760592187,4.0,141.94,141.9,1.7612]
[1723760593281,0.05053024,141.93,141.91,0.04973824]
[1723760595289,0.05053024,141.93,141.92,1.7611]
[1723760595482,7.93010125,141.93,141.92,1.7611]
[1723760595687,7.93010125,141.93,141.91,1.81093824]
[1723760595879,0.05053024,141.93,141.91,0.04973824]
[1723760596078,4.0,141.94,141.92,33.93]
[1723760596281,1.90538772,141.99,141.92,33.93]
[1723760596481,3.95568527,141.98,141.95,33.93]
[1723760596690,1.90538772,141.99,141.95,33.93]
[1723760596884,1.90538772,141.99,141.9,8.04]
[1723760596885,1.90538772,141.99,141.93,33.93]
[1723760597285,0.04839598,141.97,141.95,0.04479483]
[1723760597888,0.04839598,141.97,141.95,1.80549483]
[1723760598087,0.04839598,141.97,141.95,0.04479483]